fUSD/lending_fUSD_20250520
["ID","MTS","AMOUNT","RATE_DAILY","PERIOD"]
[361777429,1747774272711,-1180.42,0.0003315,5]
[361777430,1747774272721,-420.0,0.0003315,5]
[361777431,1747774272730,-568.9,0.0003315,5]
[361777432,1747774272740,-420.0,0.0003315,5]
[361777433,1747774272751,-420.0,0.0003315,5]
[361777434,1747774272761,-420.0,0.0003315,5]
[361777435,1747774272771,-420.0,0.0003315,5]
[361777436,1747774272782,-1096.081962,0.0003315,7]
[361777437,1747774272791,-420.0,0.0003315,5]
[361777438,1747774272802,-839.41,0.0003315,5]
[361777439,1747774272811,-420.0,0.0003315,5]
[361777440,1747774272823,-1096.081954,0.0003315,7]
[361777441,1747774272833,-420.0,0.0003315,5]
[361777442,1747774272843,-420.0,0.0003315,5]
[361777443,1747774272853,-420.0,0.0003315,5]
[361777444,1747774272863,-420.0,0.0003315,5]
[361777445,1747774272873,-4750.04,0.0003315,5]
[361777446,1747774272883,-1028.95,0.0003315,5]
[361777447,1747774272892,-420.0,0.0003315,5]
[361777448,1747774272902,-1447.57,0.0003315,5]
[361777449,1747774272912,-420.0,0.0003315,5]
[361777450,1747774272921,-636.54,0.0003315,5]
[361777451,1747774272931,-420.0,0.0003315,5]
[361777452,1747774272941,-420.0,0.0003315,5]
[361777453,1747774272950,-420.0,0.0003315,5]
[361777454,1747774272960,-420.0,0.0003315,5]
[361777455,1747774272969,-420.0,0.0003315,5]
[361777456,1747774272979,-420.0,0.0003315,2]
[361777457,1747774272988,-420.0,0.0003315,5]
[361777458,1747774272997,-420.0,0.0003315,5]
[361777459,1747774273006,-420.0,0.0003315,5]
[361777460,1747774273016,-420.0,0.0003315,5]
[361777461,1747774273025,-420.0,0.0003315,5]
[361777462,1747774273035,-1470.69,0.0003315,5]
[361777463,1747774273044,-420.0,0.0003315,5]
[361777464,1747774273054,-420.0,0.0003315,5]
[361777465,1747774273063,-420.0,0.0003315,5]
[361777466,1747774273073,-1490.82,0.0003315,5]
[361777467,1747774273082,-420.0,0.0003315,5]
[361777468,1747774273092,-420.0,0.0003315,5]
[361777469,1747774273102,-420.0,0.0003315,5]
[361777470,1747774273111,-420.0,0.0003315,5]
[361777471,1747774273123,-3218.94,0.0003315,5]
[361777472,1747774273133,-678.13,0.0003315,5]
[361777473,1747774273142,-420.0,0.0003315,5]
[361777474,1747774273151,-420.0,0.0003315,5]
[361777475,1747774273161,-420.0,0.0003315,5]
[361777476,1747774273171,-420.0,0.0003315,5]
[361777477,1747774273180,-814.81,0.0003315,5]
[361777478,1747774273190,-420.0,0.0003315,5]
[361777479,1747774273199,-2406.25,0.0003315,5]
[361777480,1747774273209,-420.0,0.0003315,5]
[361777481,1747774273219,-1533.57,0.0003315,5]
[361777482,1747774273228,-420.0,0.0003315,5]
[361777483,1747774273238,-1512.56,0.0003315,5]
[361777484,1747774273248,-420.0,0.0003315,5]
[361777485,1747774273257,-601.98,0.0003315,5]
[361777486,1747774273267,-420.0,0.0003315,5]
[361777487,1747774273276,-727.44,0.0003315,5]
[361777488,1747774273285,-1170.35,0.0003315,5]
[361777489,1747774273295,-420.0,0.0003315,5]
[361777490,1747774273304,-961.03,0.0003315,5]
[361777491,1747774273314,-420.0,0.0003315,5]
[361777492,1747774273323,-420.0,0.0003315,3]
[361777493,1747774273332,-1072.9,0.0003315,30]
[361777494,1747774273342,-420.0,0.0003315,5]
[361777495,1747774273351,-1710.52,0.0003315,5]
[361777496,1747774273361,-420.0,0.0003315,5]
[361777497,1747774273372,-420.0,0.0003315,5]
[361777498,1747774273382,-1079.9,0.0003315,5]
[361777499,1747774273391,-723.53,0.0003315,5]
[361777500,1747774273401,-420.0,0.0003315,5]
[361777501,1747774273411,-420.0,0.0003315,5]
[361777502,1747774273421,-420.0,0.0003315,5]
[361777503,1747774273430,-420.0,0.0003315,5]
[361777504,1747774273440,-718.54,0.0003315,5]
[361777505,1747774273450,-2110.45,0.0003315,5]
[361777506,1747774273459,-420.0,0.0003315,5]
[361777507,1747774273468,-661.4,0.0003315,5]
[361777508,1747774273478,-420.0,0.0003315,5]
[361777509,1747774273488,-623.66,0.0003315,5]
[361777510,1747774273497,-420.0,0.0003315,5]
[361777511,1747774273506,-420.0,0.0003315,5]
[361777512,1747774273516,-907.35608,0.0003315,7]
[361777513,1747774273525,-420.0,0.0003315,5]
[361777514,1747774273535,-420.0,0.0003315,5]
[361777515,1747774273545,-4858.21,0.0003315,5]
[361777516,1747774273555,-2273.16,0.0003315,5]
[361777517,1747774273565,-547.91,0.0003315,5]
[361777518,1747774273574,-2046.31,0.0003315,5]
[361777519,1747774273583,-907.356082,0.0003315,7]
[361777520,1747774273593,-420.0,0.0003315,5]
[361777521,1747774273602,-420.0,0.0003315,5]
[361777522,1747774273613,-420.0,0.0003315,5]
[361777523,1747774273625,-513.25,0.0003315,5]
[361777524,1747774273634,-1223.32,0.0003315,5]
[361777525,1747774273643,-420.0,0.0003315,5]
[361777526,1747774273652,-420.0,0.0003315,5]
[361777527,1747774273662,-1348.73,0.0003315,5]
[361777528,1747774273672,-420.0,0.0003315,5]
[361777529,1747774273682,-420.0,0.0003315,5]
[361777530,1747774273692,-1214.56,0.0003315,5]
[361777531,1747774273701,-420.0,0.0003315,5]
[361777532,1747774273712,-617.71,0.0003315,5]
[361777533,1747774273721,-3450.89,0.0003315,3]
[361777534,1747774273730,-1493.49,0.0003315,5]
[361777535,1747774273740,-420.0,0.0003315,5]
[361777536,1747774273749,-420.0,0.0003315,5]
[361777537,1747774273759,-420.0,0.0003315,5]
[361777538,1747774273769,-420.0,0.0003315,5]
[361777539,1747774273781,-420.0,0.0003315,5]
[361777540,1747774273790,-1092.91,0.0003315,5]
[361777541,1747774273800,-430.63,0.0003315,5]
[361777542,1747774273811,-902.06,0.0003315,5]
[361777543,1747774273820,-3724.0,0.0003315,5]
[361777544,1747774273830,-420.0,0.0003315,5]
[361777545,1747774273840,-420.0,0.0003315,5]
[361777546,1747774273851,-420.0,0.0003315,5]
[361777547,1747774273860,-3322.55,0.0003315,5]
[361777548,1747774273872,-420.0,0.0003315,5]
[361777549,1747774273882,-440.9,0.0003315,5]
[361777550,1747774273892,-1790.94,0.0003315,5]
[361777551,1747774273902,-2886.57,0.0003315,5]
[361777552,1747774273912,-1761.52,0.0003315,5]
[361777553,1747774273921,-461.26,0.0003315,5]
[361777554,1747774273931,-420.0,0.0003315,5]
[361777555,1747774273941,-757.04,0.0003315,5]
[361777556,1747774273951,-420.0,0.0003315,5]
[361777557,1747774273961,-420.0,0.0003315,5]
[361777558,1747774273972,-521.68,0.0003315,5]
[361777559,1747774273981,-163.56,0.0003315,5]
[361777560,1747774273992,-420.0,0.0003315,5]
[361777561,1747774274002,-2171.63,0.0003315,5]
[361777562,1747774274012,-1698.0,0.0003315,5]
[361777563,1747774274022,-664.64,0.0003315,5]
[361777564,1747774274037,-420.0,0.0003315,5]
[361777565,1747774274047,-1101.25,0.0003315,5]
[361777566,1747774274056,-420.0,0.0003315,5]
[361777567,1747774274065,-645.73,0.0003315,5]
[361777568,1747774274074,-420.0,0.0003315,5]
[361777569,1747774274083,-1753.14,0.0003315,5]
[361777570,1747774274093,-420.0,0.0003315,5]
[361777571,1747774274102,-420.0,0.0003315,5]
[361777572,1747774274111,-420.0,0.0003315,5]
[361777573,1747774274121,-420.0,0.0003315,5]
[361777574,1747774274131,-420.0,0.0003315,5]
[361777575,1747774274140,-420.0,0.0003315,5]
[361777576,1747774274150,-712.1,0.0003315,5]
[361777577,1747774274159,-420.0,0.0003315,5]
[361777578,1747774274169,-420.0,0.0003315,5]
[361777579,1747774274178,-3219.19,0.0003315,5]
[361777580,1747774274187,-2856.77,0.0003315,5]
[361777581,1747774274197,-420.0,0.0003315,5]
[361777582,1747774274208,-420.0,0.0003315,5]
[361777583,1747774274217,-500.92,0.0003315,5]
[361777584,1747774274226,-713.18,0.0003315,5]
[361777585,1747774274236,-420.0,0.0003315,5]
[361777586,1747774274245,-420.0,0.0003315,5]
[361777587,1747774274254,-1663.86,0.0003315,5]
[361777588,1747774274264,-1080.4,0.0003315,5]
[361777589,1747774274273,-420.0,0.0003315,5]
[361777590,1747774274282,-3512.59,0.0003315,5]
[361777591,1747774274291,-1183.65,0.0003315,5]
[361777592,1747774274301,-1827.81,0.0003315,5]
[361777593,1747774274310,-420.0,0.0003315,5]
[361777594,1747774274320,-2259.07,0.0003315,5]
[361777595,1747774274329,-246.866791,0.0003315,7]
[361777596,1747774274338,-246.866791,0.0003315,7]
[361777597,1747774274348,-1403.74,0.0003315,5]
[361777598,1747774274357,-420.0,0.0003315,5]
[361777599,1747774274367,-420.0,0.0003315,5]
[361777600,1747774274376,-1258.56,0.0003315,5]
[361777601,1747774274385,-354.96458971,0.0003315,5]
[361777602,1747774274394,-246.866791,0.0003315,7]
[361777603,1747774274403,-246.866795,0.0003315,7]
[361777604,1747774274413,-3076.14,0.0003315,5]
[361777605,1747774274422,-420.0,0.0003315,5]
[361777606,1747774274431,-1437.85,0.0003315,5]
[361777607,1747774274440,-420.0,0.0003315,5]
[361777608,1747774274449,-756.86,0.0003315,5]
[361777609,1747774274459,-420.0,0.0003315,5]
[361777610,1747774274468,-420.0,0.0003315,5]
[361777611,1747774274477,-2039.61,0.0003315,5]
[361777612,1747774274486,-420.0,0.0003315,5]
[361777613,1747774274496,-3302.48,0.0003315,5]
[361777614,1747774274505,-1565.84,0.0003315,5]
[361777615,1747774274514,-232.41378882,0.0003315,5]
[361777616,1747774274523,-541.93,0.0003315,5]
[361777617,1747774274531,-420.0,0.0003315,5]
[361777618,1747774274539,-420.0,0.0003315,5]
[361777619,1747774274548,-904.4,0.0003315,5]
[361777620,1747774274556,-624.48,0.0003315,5]
[361777621,1747774274565,-396.08015236,0.0003315,5]
[361777622,1747774274574,-931.61,0.0003315,5]
[361777623,1747774274583,-622.25,0.0003315,5]
[361777624,1747774274591,-420.0,0.0003315,5]
[361777625,1747774274600,-420.0,0.0003315,5]
[361777626,1747774274608,-420.0,0.0003315,5]
[361777627,1747774274619,-420.0,0.0003315,5]
[361777628,1747774274628,-420.0,0.0003315,5]
[361777629,1747774274637,-554.94133603,0.0003315,5]
[361777630,1747774274646,-420.0,0.0003315,5]
[361777631,1747774274654,-2592.99,0.0003315,5]
[361777632,1747774274663,-1935.0,0.0003315,5]
[361777633,1747774274673,-420.0,0.0003315,5]
[361777634,1747774274681,-420.0,0.0003315,5]
[361777635,1747774274690,-1972.66,0.0003315,5]
[361777636,1747774274699,-420.0,0.0003315,5]
[361777637,1747774274708,-1013.75,0.0003315,5]
[361777638,1747774274718,-638.02,0.0003315,5]
[361777639,1747774274727,-420.0,0.0003315,5]
[361777640,1747774274737,-1858.15,0.0003315,5]
[361777641,1747774274746,-1740.18,0.0003315,5]
[361777642,1747774274756,-420.0,0.0003315,5]
[361777643,1747774274769,-2007.43,0.0003315,5]
[361777644,1747774274779,-1855.73,0.0003315,5]
[361777645,1747774274788,-420.0,0.0003315,5]
[361777646,1747774274797,-1448.5,0.0003315,5]
[361777647,1747774274807,-420.0,0.0003315,5]
[361777648,1747774274816,-420.0,0.0003315,5]
[361777649,1747774274826,-420.0,0.0003315,5]
[361777650,1747774274835,-420.0,0.0003315,5]
[361777651,1747774274846,-1100.54,0.0003315,5]
[361777652,1747774274856,-420.0,0.0003315,5]
[361777653,1747774274869,-420.0,0.0003315,5]
[361777654,1747774274879,-1722.26,0.0003315,5]
[361777655,1747774274889,-635.78,0.0003315,5]
[361777656,1747774274899,-420.0,0.0003315,5]
[361777657,1747774274909,-1442.36,0.0003315,5]
[361777658,1747774274919,-2266.4,0.0003315,5]
[361777659,1747774274928,-1945.93,0.0003315,5]
[361777660,1747774274938,-420.0,0.0003315,5]
[361777661,1747774274948,-420.0,0.0003315,5]
[361777662,1747774274959,-1481.92,0.0003315,5]
[361777663,1747774274968,-1439.04,0.0003315,5]
[361777664,1747774274978,-1977.27,0.0003315,5]
[361777665,1747774274988,-420.0,0.0003315,5]
[361777666,1747774274998,-692.41,0.0003315,5]
[361777667,1747774275008,-1223.16,0.0003315,5]
[361777668,1747774275017,-420.0,0.0003315,5]
[361777669,1747774275027,-420.0,0.0003315,5]
[361777670,1747774275036,-420.2,0.0003315,5]
[361777671,1747774275047,-420.0,0.0003315,5]
[361777672,1747774275057,-1345.57,0.0003315,5]
[361777673,1747774275066,-420.0,0.0003315,5]
[361777674,1747774275076,-614.36,0.0003315,5]
[361777675,1747774275086,-420.0,0.0003315,5]
[361777676,1747774275096,-716.54,0.0003315,5]
[361777677,1747774275105,-420.0,0.0003315,5]
[361777678,1747774275121,-729.29,0.0003315,5]
[361777679,1747774275130,-1379.0,0.0003315,5]
[361777680,1747774275139,-804.81,0.0003315,5]
[361777681,1747774275149,-420.0,0.0003315,5]
[361777682,1747774275158,-5873.51,0.0003315,5]
[361777683,1747774275168,-420.0,0.0003315,5]
[361777684,1747774275177,-420.0,0.0003315,5]
[361777685,1747774275186,-1675.38,0.0003315,5]
[361777686,1747774275196,-420.0,0.0003315,5]
[361777687,1747774275206,-2432.9,0.0003315,5]
[361777688,1747774275215,-420.0,0.0003315,5]
[361777689,1747774275224,-420.0,0.0003315,5]
[361777690,1747774275233,-1340.01,0.0003315,5]
[361777691,1747774275244,-1531.39,0.0003315,5]
[361777692,1747774275254,-559.75,0.0003315,5]
[361777693,1747774275263,-420.0,0.0003315,5]
[361777694,1747774275272,-381.88312743,0.0003315,5]
[361777695,1747774275282,-445.21,0.0003315,5]
[361777696,1747774275291,-420.0,0.0003315,5]
[361777697,1747774275302,-475.09,0.0003315,5]
[361777698,1747774275311,-420.0,0.0003315,5]
[361777699,1747774275320,-161.78984004,0.0003315,5]
[361777700,1747774275330,-1104.96,0.0003315,5]
[361777701,1747774275339,-483.86,0.0003315,5]
[361777702,1747774275348,-826.22,0.0003315,5]
[361777703,1747774275358,-1612.92,0.0003315,5]
[361777704,1747774275371,-664.96,0.0003315,5]
[361777705,1747774275380,-919.28,0.0003315,5]
[361777706,1747774275390,-420.0,0.0003315,5]
[361777707,1747774275399,-1112.73,0.0003315,5]
[361777708,1747774275408,-420.0,0.0003315,5]
[361777709,1747774275418,-491.16,0.0003315,5]
[361777710,1747774275427,-420.0,0.0003315,5]
[361777711,1747774275436,-624.75,0.0003315,5]
[361777712,1747774275446,-420.0,0.0003315,5]
[361777713,1747774275456,-3414.64,0.0003315,5]
[361777714,1747774275465,-549.8,0.0003315,5]
[361777715,1747774275475,-420.0,0.0003315,5]
[361777716,1747774275484,-420.0,0.0003315,5]
[361777717,1747774275494,-628.31,0.0003315,5]
[361777718,1747774275503,-420.0,0.0003315,5]
[361777719,1747774275512,-420.0,0.0003315,5]
[361777720,1747774275523,-302.17113239,0.0003315,5]
[361777721,1747774275533,-420.0,0.0003315,5]
[361777722,1747774275542,-1402.78,0.0003315,5]
[361777723,1747774275552,-420.0,0.0003315,5]
[361777724,1747774275561,-420.0,0.0003315,5]
[361777725,1747774275571,-2949.73,0.0003315,5]
[361777726,1747774275580,-420.0,0.0003315,5]
[361777727,1747774275589,-868.08,0.0003315,5]
[361777728,1747774275599,-420.0,0.0003315,5]
[361777729,1747774275608,-590.51,0.0003315,5]
[361777730,1747774275621,-2447.91,0.0003315,5]
[361777731,1747774275630,-859.81,0.0003315,5]
[361777732,1747774275639,-649.41,0.0003315,5]
[361777733,1747774275649,-420.0,0.0003315,5]
[361777734,1747774275658,-530.32,0.0003315,5]
[361777735,1747774275668,-420.0,0.0003315,5]
[361777736,1747774275677,-420.0,0.0003315,5]
[361777737,1747774275687,-420.0,0.0003315,5]
[361777738,1747774275697,-420.0,0.0003315,5]
[361777739,1747774275707,-420.0,0.0003315,5]
[361777740,1747774275716,-420.0,0.0003315,5]
[361777741,1747774275726,-1309.42,0.0003315,5]
[361777742,1747774275737,-2383.81,0.0003315,5]
[361777743,1747774275746,-420.0,0.0003315,5]
[361777744,1747774275756,-426.08,0.0003315,5]
[361777745,1747774275769,-420.0,0.0003315,5]
[361777746,1747774275785,-420.0,0.0003315,5]
[361777747,1747774275795,-420.0,0.0003315,5]
[361777748,1747774275806,-528.04,0.0003315,5]
[361777749,1747774275816,-420.0,0.0003315,5]
[361777750,1747774275826,-665.58,0.0003315,5]
[361777751,1747774275836,-3177.03,0.0003315,5]
[361777752,1747774275846,-420.0,0.0003315,5]
[361777753,1747774275856,-539.77,0.0003315,5]
[361777754,1747774275865,-1681.23,0.0003315,5]
[361777755,1747774275875,-420.0,0.0003315,5]
[361777756,1747774275885,-641.31,0.0003315,5]
[361777757,1747774275895,-420.0,0.0003315,5]
[361777758,1747774275905,-373.36869762,0.0003315,5]
[361777759,1747774275914,-420.0,0.0003315,5]
[361777760,1747774275924,-871.72,0.0003315,5]
[361777761,1747774275932,-420.0,0.0003315,5]
[361777762,1747774275942,-846.13,0.0003315,5]
[361777763,1747774275951,-420.0,0.0003315,5]
[361777764,1747774275961,-420.0,0.0003315,5]
[361777765,1747774275971,-1749.52,0.0003315,5]
[361777766,1747774275980,-1026.43,0.0003315,5]
[361777767,1747774275990,-420.0,0.0003315,5]
[361777768,1747774276000,-1197.91,0.0003315,5]
[361777769,1747774276009,-420.0,0.0003315,5]
[361777770,1747774276019,-420.0,0.0003315,5]
[361777771,1747774276029,-420.0,0.0003315,5]
[361777772,1747774276037,-693.65,0.0003315,5]
[361777773,1747774276047,-420.0,0.0003315,5]
[361777774,1747774276056,-2839.6,0.0003315,5]
[361777775,1747774276065,-561.44430363,0.0003315,5]
[361777776,1747774276075,-420.0,0.0003315,5]
[361777777,1747774276084,-2258.01,0.0003315,5]
[361777778,1747774276093,-420.0,0.0003315,5]
[361777779,1747774276103,-3562.16,0.0003315,5]
[361777780,1747774276112,-565.08,0.0003315,5]
[361777781,1747774276122,-420.0,0.0003315,5]
[361777782,1747774276131,-420.0,0.0003315,5]
[361777783,1747774276141,-1350.43,0.0003315,5]
[361777784,1747774276151,-457.78,0.0003315,5]
[361777785,1747774276160,-1355.47,0.0003315,5]
[361777786,1747774276170,-420.0,0.0003315,5]
[361777787,1747774276179,-420.0,0.0003315,5]
[361777788,1747774276188,-420.0,0.0003315,5]
[361777789,1747774276198,-779.13,0.0003315,5]
[361777790,1747774276207,-722.13,0.0003315,5]
[361777791,1747774276217,-715.88,0.0003315,5]
[361777792,1747774276227,-420.0,0.0003315,5]
[361777793,1747774276237,-1571.97,0.0003315,5]
[361777794,1747774276246,-420.0,0.0003315,5]
[361777795,1747774276256,-601.15,0.0003315,5]
[361777796,1747774276265,-420.0,0.0003315,5]
[361777797,1747774276274,-420.0,0.0003315,5]
[361777798,1747774276286,-420.0,0.0003315,5]
[361777799,1747774276295,-596.59,0.0003315,5]
[361777800,1747774276304,-420.0,0.0003315,5]
[361777801,1747774276314,-3690.31,0.0003315,5]
[361777802,1747774276323,-420.0,0.0003315,5]
[361777803,1747774276332,-420.0,0.0003315,5]
[361777804,1747774276342,-488.93,0.0003315,5]
[361777805,1747774276352,-420.0,0.0003315,5]
[361777806,1747774276361,-206.26002484,0.0003315,5]
[361777807,1747774276372,-420.0,0.0003315,5]
[361777808,1747774276381,-2480.84,0.0003315,5]
[361777809,1747774276391,-1657.99,0.0003315,5]
[361777810,1747774276401,-1183.86,0.0003315,5]
[361777811,1747774276410,-747.23,0.0003315,5]
[361777812,1747774276420,-420.0,0.0003315,5]
[361777813,1747774276430,-420.0,0.0003315,5]
[361777814,1747774276439,-16813.38,0.0003315,5]
[361777815,1747774276449,-762.0,0.0003315,5]
[361777816,1747774276459,-469.28,0.0003315,5]
[361777817,1747774276470,-1885.89,0.0003315,5]
[361777818,1747774276481,-420.0,0.0003315,5]
[361777819,1747774276492,-420.0,0.0003315,5]
[361777820,1747774276502,-512.38,0.0003315,5]
[361777821,1747774276513,-2957.32,0.0003315,5]
[361777822,1747774276523,-420.0,0.0003315,5]
[361777823,1747774276533,-1868.25,0.0003315,5]
[361777824,1747774276543,-824.51,0.0003315,5]
[361777825,1747774276553,-692.87,0.0003315,5]
[361777826,1747774276562,-1292.88,0.0003315,5]
[361777827,1747774276572,-420.0,0.0003315,5]
[361777828,1747774276582,-3110.87,0.0003315,5]
[361777829,1747774276591,-30139.94,0.0003315,5]
[361777830,1747774276601,-1830.72,0.0003315,5]
[361777831,1747774276611,-420.0,0.0003315,5]
[361777832,1747774276624,-1114.33,0.0003315,5]
[361777833,1747774276633,-2027.36,0.0003315,5]
[361777834,1747774276644,-879.52,0.0003315,5]
[361777835,1747774276653,-420.0,0.0003315,5]
[361777836,1747774276663,-420.0,0.0003315,5]
[361777837,1747774276673,-420.0,0.0003315,5]
[361777838,1747774276683,-6848.53,0.0003315,5]
[361777839,1747774276693,-803.86,0.0003315,5]
[361777840,1747774276703,-420.0,0.0003315,5]
[361777841,1747774276713,-437.25,0.0003315,5]
[361777842,1747774276724,-420.0,0.0003315,5]
[361777843,1747774276734,-420.0,0.0003315,5]
[361777844,1747774276744,-420.0,0.0003315,5]
[361777845,1747774276753,-2407.74,0.0003315,5]
[361777846,1747774276766,-1154.62,0.0003315,5]
[361777847,1747774276776,-896.4,0.0003315,5]
[361777848,1747774276785,-3524.53,0.0003315,5]
[361777849,1747774276795,-794.45,0.0003315,5]
[361777850,1747774276806,-420.0,0.0003315,2]
[361777851,1747774276816,-12311.35,0.0003315,5]
[361777852,1747774276827,-420.0,0.0003315,5]
[361777853,1747774276836,-1649.39,0.0003315,5]
[361777854,1747774276846,-420.0,0.0003315,5]
[361777855,1747774276858,-420.0,0.0003315,5]
[361777856,1747774276870,-493.94,0.0003315,5]
[361777857,1747774276880,-420.0,0.0003315,5]
[361777858,1747774276890,-1007.49,0.0003315,5]
[361777859,1747774276900,-3274.9,0.0003315,5]
[361777860,1747774276910,-3680.45,0.0003315,5]
[361777861,1747774276920,-1204.7,0.0003315,5]
[361777862,1747774276929,-22905.89,0.0003315,5]
[361777863,1747774276939,-513.45,0.0003315,5]
[361777864,1747774276949,-2548.43,0.0003315,5]
[361777865,1747774276959,-1829.39,0.0003315,5]
[361777866,1747774276969,-27768.21,0.0003315,5]
[361777867,1747774276979,-420.0,0.0003315,5]
[361777868,1747774276989,-5493.96,0.0003315,5]
[361777869,1747774276999,-420.0,0.0003315,5]
[361777870,1747774277009,-434.25,0.0003315,5]
[361777871,1747774277019,-420.0,0.0003315,5]
[361777872,1747774277028,-257.87203322,0.0003315,5]
[361777873,1747774277038,-5805.85,0.0003315,5]
[361777874,1747774277048,-420.0,0.0003315,5]
[361777875,1747774277059,-1031.8,0.0003315,5]
[361777876,1747774277069,-420.0,0.0003315,5]
[361777877,1747774277078,-588.29,0.0003315,5]
[361777878,1747774277089,-420.0,0.0003315,5]
[361777879,1747774277102,-2143.27,0.0003315,5]
[361777880,1747774277117,-2070.36,0.0003315,5]
[361777881,1747774277131,-1088.35,0.0003315,5]
[361777882,1747774277144,-420.0,0.0003315,5]
[361777883,1747774277156,-420.0,0.0003315,5]
[361777884,1747774277169,-420.0,0.0003315,5]
[361777885,1747774277182,-4915.94,0.0003315,5]
[361777886,1747774277196,-1751.3,0.0003315,5]
[361777887,1747774277209,-2768.48,0.0003315,5]
[361777888,1747774277224,-1358.48,0.0003315,5]
[361777889,1747774277238,-513.33976864,0.0003315,5]
[361777890,1747774277252,-420.0,0.0003315,5]
[361777891,1747774277266,-626.21,0.0003315,5]
[361777892,1747774277278,-420.0,0.0003315,5]
[361777893,1747774277291,-7757.89,0.0003315,5]
[361777894,1747774277303,-1321.43,0.0003315,5]
[361777895,1747774277315,-450.68,0.0003315,5]
[361777896,1747774277329,-420.0,0.0003315,5]
[361777897,1747774277343,-4044.77,0.0003315,5]
[361777898,1747774277358,-2389.08,0.0003315,5]
[361777899,1747774277372,-420.0,0.0003315,5]
[361777900,1747774277385,-986.17,0.0003315,5]
[361777901,1747774277398,-420.0,0.0003315,5]
[361777902,1747774277412,-2505.02,0.0003315,5]
[361777903,1747774277425,-552.64,0.0003315,5]
[361777904,1747774277441,-1268.45,0.0003315,5]
[361777905,1747774277453,-2134.89,0.0003315,5]
[361777906,1747774277468,-977.19,0.0003315,5]
[361777907,1747774277481,-420.0,0.0003315,5]
[361777908,1747774277495,-420.0,0.0003315,5]
[361777909,1747774277508,-420.0,0.0003315,5]
[361777910,1747774277521,-747.72,0.0003315,5]
[361777911,1747774277534,-723.83,0.0003315,5]
[361777912,1747774277547,-517.56,0.0003315,5]
[361777913,1747774277561,-3376.02,0.0003315,5]
[361777914,1747774277574,-420.0,0.0003315,5]
[361777915,1747774277589,-420.0,0.0003315,5]
[361777916,1747774277601,-420.0,0.0003315,5]
[361777917,1747774277613,-1850.79,0.0003315,5]
[361777918,1747774277627,-430.63,0.0003315,5]
[361777919,1747774277639,-420.0,0.0003315,5]
[361777920,1747774277651,-1173.48,0.0003315,5]
[361777921,1747774277663,-420.0,0.0003315,5]
[361777922,1747774277674,-477.39,0.0003315,5]
[361777923,1747774277689,-465.62,0.0003315,5]
[361777924,1747774277703,-3135.62,0.0003315,5]
[361777925,1747774277715,-420.0,0.0003315,5]
[361777926,1747774277726,-420.0,0.0003315,5]
[361777927,1747774277737,-420.0,0.0003315,5]
[361777928,1747774277748,-3545.32,0.0003315,5]